{"text_format":"2","workbook":"xlsx","n_sheets":3,"sheets":["CDQE Brigade Territoriale","CDQE Commissariat","RECAP"],"not_rendered":{"charts":0,"images":0,"macros":0,"external_links":0,"defined_names":0,"comments":0,"pivot_tables":0},"unopened":[],"bounds":{"document_bytes":16777216,"sheet_cells":100000,"run_cost":"one","rows_first":2000,"rows_last":500,"rows_between":2000,"halvings":0,"cell_chars":16384,"cell_head_chars":4096},"cells_cut":0,"cells_raw":0,"read":"whole","date_system":"1900"}

{"sheet":"CDQE Brigade Territoriale","index":0,"n_rows":66,"n_cols":6,"rows_kept":66,"cut":false,"hidden":false,"merged":[[57,0,57,4],[0,0,0,5],[1,0,1,5]]}
["TRAVAUX D'EXTENSION DE LA BRIGADE TERRITORIALE DE BOZOUM"]
["CADRE DE DEVIS QUANTITATIF ET ESTIMATIF DES TRAVAUX"]
[]
[]
["N°.","Désignation","Unité","Qté Demandée","P.U.","Prix Total"]
["I","INSTALLATION ET TRAVAUX PREPARATOIRES"]
["1.1","Installation lourde et repli de chantier","FF",1,null,{"$f":"+D7*E7","v":0}]
["1.2","Désherbage et nettoyage du site y compris toutes sujétions","FF",1,null,{"$f":"+D8*E8","v":0}]
[null,"Total I",null,null,null,{"$f":"SUM(F7:F8)","v":0}]
["II","FONDATIONS"]
["2.1","Travaux d'implantation de l'ouvrage y compris toutes sujétions","FF",1,null,{"$f":"+D11*E11","v":0}]
["2.2","Fouille en rigole pour semelle en continue 40x50, y compris toutes sujétions","m3",14.96,null,0]
["2.3","Béton de propreté dosé à 150 kg/m3 y compris toutes sujétions","m3",1.5,null,0]
["2.4","Maçonnerie de moellon pour semelle filante 40x80, hourdée au mortier de ciment dosé à 300 kg/m3 y compris toutes sujétions","m3",23.94,null,0]
["2.5","Chainage bas de 10 cm d'épaisseur en béton armé dosé à 350 kg/m3 y compris toutes sujétions","m3",2.99,null,0]
["2.6","Remblai d'apport en latérite en couches de 20 cm successives selon les profondeurs cm y compris compactage et toutes sujétions","m3",108.88,null,0]
["2.7","Hérisson de pierre en couche de 15 cm y compris toutes sujétions","m3",27.55,null,0]
["2.8","Dalle de forme en béton légèrement armé dosé à 300 kg/m3 avec chape incorporé y compris joint de dilatation et toutes sujétions","m3",18.350000000000001,null,0]
[null,"Total II",null,null,null,{"$f":"SUM(F11:F18)","v":0}]
["III","MURS EN ELEVATION - ENDUIT - BETON"]
["3.1","Mur en briques agglomérées de 15 (murs pignons compris), hourdé au mortier de ciment dosé à 250kg/m3 y compris toutes sujétions","m²",426.4,null,{"$f":"+D21*E21","v":0}]
["3.2","Enduit bicouche de 2,5 cm sur mur (couche de base et couche de finition), en mortier de ciment dosé à 300 kg/m3, y compris toutes sujétions","m²",852.8,null,0]
["3.3","Béton armé pour chainage haut, intermédiaire et support des murs pignons, dosé à 350 kg/m3 y compris toutes sujétions","m3",2.08,null,0]
["3.4","Béton armé pour poteaux, dosé à 350kg/m3 y compris toutes sujétions","m3",1.59,null,0]
["3.5","Béton armé dosé à 350 kg/m3 pour toiture terrasse à l'entrée y compris chenaux et toutes sujétions d'évacuation","m3",0.84,null,0]
[null,"Total III",null,null,null,{"$f":"SUM(F21:F25)","v":0}]
["IV","TOITURE ET COUVERTURE"]
["4.1","Fourniture et pose de lices et panne en bois rouge de 8x8 y compris toutes sujétions","m3",3.11,null,{"$f":"+D28*E28","v":0}]
["4.2","Couverture en tôle Alu de 6/10e y compris toutes sujétions","m²",286.3,null,0]
["4.3","Planche de rive en bois blanc traité et raboté de largeur 20 cm y compris toutes sujétions","ml",68.34,null,0]
["4.4","Ossature de faux plafond en bois rouge de 4x8 cm y compris toutes sujétions","m3",2.12,null,0]
["4.5","Faux plafond en feuille de 5mm y compris couvre joint, molure d'angle et toutes sujétions","m²",268.02999999999997,null,0]
["4.6","Etanchéité de la toiture terrasse avec un matériau approprié de différente couche y compris toutes sujétions","FF",1,null,0]
[null,"Total IV",null,null,null,{"$f":"SUM(F28:F33)","v":0}]
["V","MENUSERIE BOIS ET METALLIQUE"]
["5.1","Fourniture et pose bloc porte, cadre en bois rouge de 7x15 et battant en panneau d'épaisseur 4 cm, 3 paumelles de 160, 2 targettes internes et 1 serrure de type vachette y compris quincaillerie et toutes sujétions",null,null,null,{"$f":"+D36*E36","v":0}]
["5.1.1","Dimension : 100x220","U",2,null,0]
["5.1.2","Dimensions : 200x220","U",2,null,0]
["5.1.3","Dimensions : 90x220","U",2,null,0]
["5.2","Fourniture et pose bloc porte de 300x200, cadre en tube carré lourde de 40 mm et battant en tube rectangulaire de 20x30 selon un modèle à déterminer, 4 paumelles à souder et 2 portes cadenas et une serrure de type vachette y compris quincaillerie et toutes sujétions","U",1,null,0]
["5.3","Fourniture et pose bloc fenêtre, cadre en bois rouge de 7x15 et battant en panneau d'épaisseur 4 cm, 4 paumelles de 160, 2 targettes internes y compris quincaillerie et toutes sujétions",null,null,null,0]
["5.3.1","Dimensions : 200x150","U",6,null,0]
["5.3.2","Dimensions : 200x100","U",4,null,0]
[null,"Total V",null,null,null,{"$f":"SUM(F36:F43)","v":0}]
["VI","PRE INSTALLATION ELECTRICITE"]
["6.1","Fourniture et installation de tube isorange pour alimentation électrique des prises et lampes, y compris accessoires (boite de dérivation, boite encastrée etc.) et toutes sujétions","FF",1,null,{"$f":"+D46*E46","v":0}]
["6.2","Fourniture et installation de filerie pour alimentation des lampes y compris toutes sujétions","ml",180,null,0]
["6.3","Fourniture et installation de filerie pour alimentation des prises de courant y compris toutes sujétions","ml",210,null,0]
["6.4","Fourniture et installation des prises de courant y compris toutes sujétions","ml",15,null,0]
["6.5","Fourniture et installation des lampes à basse consommation y compris toutes sujétions","ml",8,null,0]
["6.6","Fourniture et installation de lampe étanche de type réglette 60 y compris toutes sujétions","Pce",4,null,0]
[null,"Total VI",null,null,null,{"$f":"SUM(F46:F51)","v":0}]
["VII","PEINTURE ET VERNIS"]
["7.1","Application de la peinture de type vinylique sur mur en double couches y compris toutes sujétions","m²",568.53,null,{"$f":"+D54*E54","v":0}]
["7.2","Application de la peinture de type glycérophtalique sur mur d'allège (1,5m) en double couches y compris toutes sujétions","m²",284.27,null,0]
["7.3","Application de la peinture de type glycérophtalique sur ouvrages en bois et métallique en double couches y compris toutes sujétions","m²",91.6,null,0]
[null,"Total VII",null,null,null,{"$f":"SUM(F54:F56)","v":0}]
["Total Brigade",{"$nulls":4},{"$f":"+F57+F52+F44+F34+F26+F19+F9","v":0}]
[]
["Arrêté le présent devis au montant (en lettres) de:________________________________________"]
["____________________________________________________________________________"]
[]
[null,null,"Fait à_______________, le ____________ 2021"]
[]
[null,null,"Noms et prénoms de la personne "]
[null,null,"ayant pouvoir d'engager l'entreprise, précédée de sa signature"]

{"sheet":"CDQE Commissariat","index":1,"n_rows":23,"n_cols":6,"rows_kept":23,"cut":false,"hidden":false,"merged":[[14,0,14,4],[0,0,0,5],[1,0,1,5]]}
["TRAVAUX D'EXTENSION DE RENFORCEMENT DE LA SECURITE AU COMMISSARIAT DE BOZOUM"]
["CADRE DE DEVIS QUANTITATIF ET ESTIMATIF DES TRAVAUX"]
[]
[]
["No.","Désignation","Unité","Qté Demandée","P.U.","Prix Total"]
[null,"Bâtiment principal"]
["1.1","Renforcement des portes métalliques, soudure et fourniture des serrures de type vachette y compris toutes sujétions","Pce",7,null,{"$f":"D7*E7","v":0}]
["1.2","Renforcement des grilles métalliques au niveau des fenêtres (reprise partielle de la soudure) y compris toutes sujétions","Pce",13,null,{"$f":"D8*E8","v":0}]
["1.3","Révision des châssis Naco de 7 lames et remplacement des lames en bois y compris toutes sujétions","Paire",10,null,0]
["1.4","Etanchéité de couverture en tôle alu de 6/10ème y compris toutes sujétions","m²",254.1,null,0]
[" 1.5","Préparation de la surface avant impression y compris grattage, colmatage, ponçage et toutes sujétions","m²",1620,null,0]
["1.6","Peinture à eau en double couches pour le mur y compris toutes sujétions","m² ",1080,null,0]
["1.7","Peinture à huile (couleur de la police) en double couches pour les ouvrages en bois et métalliques y compris le mur à 1,5 m d'hauteur et toutes sujétions","m² ",540,null,0]
[null,"Total Sécurisation Bâtiment principal",null,null,null,{"$f":"+SUM(F7:F13)","v":0}]
["Total Général"]
[]
["Arrêté le présent devis au montant (en lettres) de:________________________________________"]
["____________________________________________________________________________"]
[]
[null,null,"Fait à_______________, le ____________ 2021"]
[]
[null,null,"Noms et prénoms de la personne "]
[null,null,"ayant pouvoir d'engager l'entreprise, précédée de sa signature"]

{"sheet":"RECAP","index":2,"n_rows":15,"n_cols":3,"rows_kept":15,"cut":false,"hidden":false,"merged":[[0,0,0,2]]}
["RECAPITULATIF"]
[]
["No.","Travaux","Montant"]
["I.","Travaux d'extension de la Brigade Territoriale de Bozoum"]
["II.","Travaux de renforcement de la sécurité du Commissariat de Police de Bozoum"]
[null,"TOTAL",{"$f":"SUM(C4:C5)","v":0}]
[]
[]
["Arrêté la présente offre financière au montant (en lettres) de:________________________________________"]
["_____________________________________________________________________________________"]
[]
[null,"Fait à_______________, le ____________ 2021"]
[]
[null,"Noms et prénoms de la personne "]
[null,"ayant pouvoir d'engager l'entreprise, précédée de sa signature"]